[Event "Titled Tuesday Blitz January 31 Late 2023"]
[White "Fernandez Guillen, Ernesto J."]
[Black "Pranav, V"]
[WhiteFideId "3512428"]
[BlackFideId "25060783"]
[WhiteElo "2477"]
[BlackElo "2597"]
[Result "0-1"]
[Round "11"]
[TimeControl "180+2"]
[Date "2023.02.01"]
[WhiteClock "0:00:02"]
[BlackClock "0:00:22"]

1. e4 {[%clk 0:03:00]}  e5 {[%clk 0:03:00]} 2. Nf3 {[%clk 0:02:59]}  Nc6 {[%clk 0:03:00]} 3. d4 {[%clk 0:02:58]}  exd4 {[%clk 0:03:01]} 4. Bc4 {[%clk 0:02:59]}  Nf6 {[%clk 0:03:01]} 5. O-O {[%clk 0:02:59]}  d6 {[%clk 0:02:58]} 6. Nxd4 {[%clk 0:02:58]}  Be7 {[%clk 0:02:57]} 7. Nxc6 {[%clk 0:02:57]}  bxc6 {[%clk 0:02:58]} 8. Nc3 {[%clk 0:02:57]}  O-O {[%clk 0:02:58]} 9. h3 {[%clk 0:02:57]}  Be6 {[%clk 0:02:57]} 10. Bd3 {[%clk 0:02:57]}  Re8 {[%clk 0:02:53]} 11. f4 {[%clk 0:02:54]}  Bf8 {[%clk 0:02:54]} 12. Qf3 {[%clk 0:02:54]}  Nd7 {[%clk 0:02:49]} 13. Bd2 {[%clk 0:02:53]}  Rb8 {[%clk 0:02:49]} 14. b3 {[%clk 0:02:53]}  Nc5 {[%clk 0:02:49]} 15. Rfe1 {[%clk 0:02:51]}  g6 {[%clk 0:02:44]} 16. f5 {[%clk 0:02:28]}  Nxd3 {[%clk 0:02:32]} 17. cxd3 {[%clk 0:02:10]}  Bd7 {[%clk 0:02:28]} 18. Rf1 {[%clk 0:01:43]}  Bg7 {[%clk 0:02:21]} 19. f6 {[%clk 0:01:42]}  Bf8 {[%clk 0:02:20]} 20. Rac1 {[%clk 0:01:40]}  Be6 {[%clk 0:02:19]} 21. d4 {[%clk 0:01:38]}  d5 {[%clk 0:02:17]} 22. e5 {[%clk 0:01:38]}  c5 {[%clk 0:02:18]} 23. Ne2 {[%clk 0:01:33]}  cxd4 {[%clk 0:02:14]} 24. Nxd4 {[%clk 0:01:34]}  c5 {[%clk 0:02:15]} 25. Nc6 {[%clk 0:01:34]}  Qb6 {[%clk 0:02:14]} 26. Nxb8 {[%clk 0:01:35]}  Rxb8 {[%clk 0:02:15]} 27. Kh1 {[%clk 0:01:34]}  d4 {[%clk 0:02:12]} 28. Rfd1 {[%clk 0:01:20]}  Qa6 {[%clk 0:02:11]} 29. Bf4 {[%clk 0:00:58]}  Qxa2 {[%clk 0:02:02]} 30. Ra1 {[%clk 0:00:58]}  Qxb3 {[%clk 0:02:03]} 31. Qxb3 {[%clk 0:00:54]}  Bxb3 {[%clk 0:02:04]} 32. Rdb1 {[%clk 0:00:54]}  c4 {[%clk 0:02:04]} 33. e6 {[%clk 0:00:53]}  Rb7 {[%clk 0:01:54]} 34. e7 {[%clk 0:00:49]}  Bxe7 {[%clk 0:01:54]} 35. fxe7 {[%clk 0:00:50]}  Rxe7 {[%clk 0:01:55]} 36. Bb8 {[%clk 0:00:32]}  d3 {[%clk 0:01:51]} 37. Bxa7 {[%clk 0:00:20]}  d2 {[%clk 0:01:39]} 38. Bd4 {[%clk 0:00:18]}  f5 {[%clk 0:01:39]} 39. Bc3 {[%clk 0:00:16]}  Rd7 {[%clk 0:01:36]} 40. Bxd2 {[%clk 0:00:06]}  Rxd2 {[%clk 0:01:36]} 41. Ra7 {[%clk 0:00:06]}  Re2 {[%clk 0:01:21]} 42. Rc1 {[%clk 0:00:06]}  h5 {[%clk 0:01:15]} 43. Kg1 {[%clk 0:00:06]}  Kf8 {[%clk 0:01:15]} 44. Rc7 {[%clk 0:00:05]}  Re7 {[%clk 0:01:15]} 45. Rxe7 {[%clk 0:00:04]}  Kxe7 {[%clk 0:01:15]} 46. Kf2 {[%clk 0:00:05]}  Kf6 {[%clk 0:01:16]} 47. Ke3 {[%clk 0:00:05]}  Ke5 {[%clk 0:01:16]} 48. g3 {[%clk 0:00:06]}  g5 {[%clk 0:01:16]} 49. h4 {[%clk 0:00:05]}  f4+ {[%clk 0:01:16]} 50. gxf4+ {[%clk 0:00:06]}  gxf4+ {[%clk 0:01:17]} 51. Kf3 {[%clk 0:00:06]}  Kf5 {[%clk 0:00:54]} 52. Rg1 {[%clk 0:00:06]}  Ke5 {[%clk 0:00:48]} 53. Rg8 {[%clk 0:00:04]}  c3 {[%clk 0:00:47]} 54. Re8+ {[%clk 0:00:05]}  Kd4 {[%clk 0:00:46]} 55. Rc8 {[%clk 0:00:04]}  c2 {[%clk 0:00:44]} 56. Ke2 {[%clk 0:00:03]}  f3+ {[%clk 0:00:41]} 57. Kd2 {[%clk 0:00:03]}  Ke4 {[%clk 0:00:30]} 58. Rc3 {[%clk 0:00:04]}  f2 {[%clk 0:00:28]} 59. Ke2 {[%clk 0:00:02]}  Kd4 {[%clk 0:00:22]} 60. Rxc2 {[%clk 0:00:01]}  Bxc2 {[%clk 0:00:22]} 61. Kxf2 {[%clk 0:00:02]}  Ke5 {[%clk 0:00:22]} 0-1


[Site "https://www.chess.com"]

[Event "Titled Tuesday Blitz January 31 Late 2023"]
[White "Yoo, Christopher Woojin"]
[Black "Svane, Rasmus"]
[WhiteFideId "30909694"]
[BlackFideId "4657101"]
[WhiteElo "2607"]
[BlackElo "2623"]
[Result "0-1"]
[Round "11"]
[TimeControl "180+2"]
[Date "2023.02.01"]
[WhiteClock "0:00:09"]
[BlackClock "0:00:42"]

1. e4 {[%clk 0:03:00]}  c6 {[%clk 0:02:56]} 2. d4 {[%clk 0:03:00]}  d5 {[%clk 0:02:57]} 3. exd5 {[%clk 0:02:58]}  cxd5 {[%clk 0:02:57]} 4. c4 {[%clk 0:02:59]}  Nf6 {[%clk 0:02:57]} 5. Nc3 {[%clk 0:03:00]}  Nc6 {[%clk 0:02:57]} 6. Nf3 {[%clk 0:03:01]}  a6 {[%clk 0:02:58]} 7. Bg5 {[%clk 0:02:58]}  Be6 {[%clk 0:02:57]} 8. Be2 {[%clk 0:02:53]}  g6 {[%clk 0:02:58]} 9. Bxf6 {[%clk 0:02:52]}  exf6 {[%clk 0:02:58]} 10. O-O {[%clk 0:02:51]}  Bg7 {[%clk 0:02:58]} 11. Qb3 {[%clk 0:02:43]}  dxc4 {[%clk 0:02:02]} 12. Qxb7 {[%clk 0:02:35]}  Na5 {[%clk 0:02:02]} 13. Qb4 {[%clk 0:02:23]}  Bf8 {[%clk 0:01:58]} 14. Qa4+ {[%clk 0:02:20]}  Bd7 {[%clk 0:01:58]} 15. Qc2 {[%clk 0:02:20]}  Bg7 {[%clk 0:01:57]} 16. Qe4+ {[%clk 0:02:14]}  Kf8 {[%clk 0:01:52]} 17. Qd5 {[%clk 0:01:57]}  Kg8 {[%clk 0:01:36]} 18. Bxc4 {[%clk 0:01:35]}  Nxc4 {[%clk 0:01:31]} 19. Qxc4 {[%clk 0:01:36]}  Bg4 {[%clk 0:01:26]} 20. Rfe1 {[%clk 0:01:32]}  Bxf3 {[%clk 0:01:22]} 21. gxf3 {[%clk 0:01:29]}  f5 {[%clk 0:01:13]} 22. Nd5 {[%clk 0:01:26]}  Qg5+ {[%clk 0:01:13]} 23. Kh1 {[%clk 0:01:24]}  h6 {[%clk 0:01:13]} 24. Rg1 {[%clk 0:01:18]}  Qh4 {[%clk 0:00:49]} 25. Rae1 {[%clk 0:00:33]}  Kh7 {[%clk 0:00:47]} 26. Re7 {[%clk 0:00:28]}  Rhf8 {[%clk 0:00:47]} 27. Nb6 {[%clk 0:00:19]}  Qxe7 {[%clk 0:00:45]} 28. Nxa8 {[%clk 0:00:18]}  Rxa8 {[%clk 0:00:46]} 29. Rc1 {[%clk 0:00:18]}  Rd8 {[%clk 0:00:45]} 30. Qxa6 {[%clk 0:00:18]}  Rxd4 {[%clk 0:00:43]} 31. a4 {[%clk 0:00:15]}  Rd2 {[%clk 0:00:43]} 32. Qf1 {[%clk 0:00:12]}  Qh4 {[%clk 0:00:42]} 33. a5 {[%clk 0:00:09]}  Rxf2 {[%clk 0:00:42]} 0-1


[Site "https://www.chess.com"]

[Event "Titled Tuesday Blitz January 31 Late 2023"]
[White "Iskusnyh, Sergei"]
[Black "Dominguez Perez, Leinier"]
[WhiteFideId "4120027"]
[BlackFideId "3503240"]
[WhiteElo "2440"]
[BlackElo "2739"]
[Result "0-1"]
[Round "11"]
[TimeControl "180+2"]
[Date "2023.02.01"]
[WhiteClock "0:00:01"]
[BlackClock "0:00:08"]

1. d4 {[%clk 0:03:00]}  d5 {[%clk 0:02:59]} 2. c4 {[%clk 0:03:00]}  dxc4 {[%clk 0:03:00]} 3. e3 {[%clk 0:03:00]}  Be6 {[%clk 0:03:00]} 4. Nf3 {[%clk 0:02:46]}  c6 {[%clk 0:02:59]} 5. Nc3 {[%clk 0:02:41]}  b5 {[%clk 0:02:53]} 6. Be2 {[%clk 0:02:40]}  Nf6 {[%clk 0:02:53]} 7. O-O {[%clk 0:02:40]}  g6 {[%clk 0:02:53]} 8. Ng5 {[%clk 0:02:36]}  Bd7 {[%clk 0:02:45]} 9. Bf3 {[%clk 0:02:24]}  a6 {[%clk 0:02:31]} 10. a4 {[%clk 0:02:11]}  Ra7 {[%clk 0:02:27]} 11. d5 {[%clk 0:01:46]}  Qb6 {[%clk 0:02:05]} 12. dxc6 {[%clk 0:01:43]}  Bxc6 {[%clk 0:02:05]} 13. axb5 {[%clk 0:01:34]}  axb5 {[%clk 0:02:05]} 14. Rxa7 {[%clk 0:01:33]}  Qxa7 {[%clk 0:02:04]} 15. Bxc6+ {[%clk 0:01:32]}  Nxc6 {[%clk 0:02:05]} 16. Nxb5 {[%clk 0:01:33]}  Qa5 {[%clk 0:01:58]} 17. Nd4 {[%clk 0:01:09]}  Nxd4 {[%clk 0:01:48]} 18. Qxd4 {[%clk 0:01:06]}  Bg7 {[%clk 0:01:35]} 19. Qxc4 {[%clk 0:01:04]}  O-O {[%clk 0:01:33]} 20. Nf3 {[%clk 0:01:01]}  Qb6 {[%clk 0:01:25]} 21. Rd1 {[%clk 0:00:52]}  Qb7 {[%clk 0:01:24]} 22. b4 {[%clk 0:00:33]}  Rc8 {[%clk 0:01:19]} 23. Qb3 {[%clk 0:00:31]}  Rb8 {[%clk 0:00:45]} 24. h3 {[%clk 0:00:29]}  Ne4 {[%clk 0:00:43]} 25. Qc4 {[%clk 0:00:19]}  Bf6 {[%clk 0:00:36]} 26. b5 {[%clk 0:00:16]}  Rc8 {[%clk 0:00:33]} 27. Qb3 {[%clk 0:00:15]}  Nc3 {[%clk 0:00:31]} 28. Rf1 {[%clk 0:00:15]}  Ne2+ {[%clk 0:00:30]} 29. Kh1 {[%clk 0:00:13]}  Nxc1 {[%clk 0:00:30]} 30. Qb4 {[%clk 0:00:10]}  Nd3 {[%clk 0:00:23]} 31. Qb3 {[%clk 0:00:10]}  Nc5 {[%clk 0:00:23]} 32. Qb4 {[%clk 0:00:10]}  Ne4 {[%clk 0:00:21]} 33. Kg1 {[%clk 0:00:08]}  Nc3 {[%clk 0:00:19]} 34. b6 {[%clk 0:00:06]}  Rb8 {[%clk 0:00:19]} 35. Nd4 {[%clk 0:00:05]}  Bxd4 {[%clk 0:00:19]} 36. exd4 {[%clk 0:00:06]}  Nd5 {[%clk 0:00:19]} 37. Qc5 {[%clk 0:00:05]}  e6 {[%clk 0:00:16]} 38. Rb1 {[%clk 0:00:05]}  Nf4 {[%clk 0:00:15]} 39. f3 {[%clk 0:00:03]}  Nd5 {[%clk 0:00:14]} 40. h4 {[%clk 0:00:03]}  h5 {[%clk 0:00:14]} 41. Kh2 {[%clk 0:00:03]}  Nxb6 {[%clk 0:00:13]} 42. g4 {[%clk 0:00:03]}  Qxf3 {[%clk 0:00:12]} 43. gxh5 {[%clk 0:00:01]}  Qxh5 {[%clk 0:00:08]} 0-1


[Site "https://www.chess.com"]

[Event "Titled Tuesday Blitz January 31 Late 2023"]
[White "Martinez Alcantara, Jose Eduardo"]
[Black "Bryakin, Mikhail"]
[WhiteFideId "3805662"]
[BlackFideId "4165314"]
[WhiteElo "2619"]
[BlackElo "2455"]
[Result "1-0"]
[Round "11"]
[TimeControl "180+2"]
[Date "2023.02.01"]
[WhiteClock "0:00:55"]
[BlackClock "0:01:08"]

1. e4 {[%clk 0:03:00]}  g6 {[%clk 0:02:52]} 2. d4 {[%clk 0:03:00]}  Bg7 {[%clk 0:02:52]} 3. c3 {[%clk 0:03:00]}  d6 {[%clk 0:02:51]} 4. Bd3 {[%clk 0:03:00]}  e5 {[%clk 0:02:51]} 5. Nf3 {[%clk 0:03:00]}  Nd7 {[%clk 0:02:51]} 6. O-O {[%clk 0:03:01]}  Ngf6 {[%clk 0:02:51]} 7. h3 {[%clk 0:03:01]}  O-O {[%clk 0:02:52]} 8. Re1 {[%clk 0:03:02]}  c6 {[%clk 0:02:52]} 9. Bg5 {[%clk 0:03:03]}  h6 {[%clk 0:02:52]} 10. Bh4 {[%clk 0:03:03]}  Qe7 {[%clk 0:02:52]} 11. Nbd2 {[%clk 0:03:03]}  a6 {[%clk 0:02:52]} 12. a4 {[%clk 0:03:02]}  b6 {[%clk 0:02:50]} 13. Qb3 {[%clk 0:02:58]}  Bb7 {[%clk 0:02:49]} 14. Nc4 {[%clk 0:02:54]}  b5 {[%clk 0:02:48]} 15. Na5 {[%clk 0:02:54]}  Rab8 {[%clk 0:02:47]} 16. axb5 {[%clk 0:02:54]}  axb5 {[%clk 0:02:47]} 17. Nxb7 {[%clk 0:02:54]}  Rxb7 {[%clk 0:02:48]} 18. Ra6 {[%clk 0:02:54]}  Rc8 {[%clk 0:02:48]} 19. Qa2 {[%clk 0:02:52]}  g5 {[%clk 0:02:47]} 20. Bg3 {[%clk 0:02:52]}  Nh5 {[%clk 0:02:47]} 21. Bh2 {[%clk 0:02:52]}  Nf4 {[%clk 0:02:48]} 22. Bxf4 {[%clk 0:02:49]}  gxf4 {[%clk 0:02:47]} 23. b4 {[%clk 0:02:29]}  Nb6 {[%clk 0:02:44]} 24. Qb3 {[%clk 0:02:13]}  Bf6 {[%clk 0:02:43]} 25. Kh2 {[%clk 0:02:07]}  Kh8 {[%clk 0:02:42]} 26. d5 {[%clk 0:02:02]}  cxd5 {[%clk 0:02:40]} 27. exd5 {[%clk 0:02:03]}  Nc4 {[%clk 0:02:35]} 28. Rc6 {[%clk 0:02:03]}  Rg8 {[%clk 0:02:23]} 29. Bxc4 {[%clk 0:01:56]}  bxc4 {[%clk 0:02:24]} 30. Qxc4 {[%clk 0:01:57]}  Bh4 {[%clk 0:02:24]} 31. Qe2 {[%clk 0:01:40]}  f5 {[%clk 0:02:22]} 32. Nxe5 {[%clk 0:01:31]}  Qg7 {[%clk 0:01:51]} 33. Ng4 {[%clk 0:01:03]}  fxg4 {[%clk 0:01:49]} 34. hxg4 {[%clk 0:01:03]}  Qxg4 {[%clk 0:01:44]} 35. Qxg4 {[%clk 0:00:59]}  Rxg4 {[%clk 0:01:45]} 36. Re8+ {[%clk 0:00:57]}  Kh7 {[%clk 0:01:36]} 37. Kh3 {[%clk 0:00:54]}  Rbg7 {[%clk 0:01:13]} 38. Rcc8 {[%clk 0:00:55]}  Rxg2 {[%clk 0:01:08]} 39. Rh8+ {[%clk 0:00:54]}  Kg6 {[%clk 0:01:08]} 40. Kxg2 {[%clk 0:00:55]} 1-0


[Site "https://www.chess.com"]

[Event "Titled Tuesday Blitz January 31 Late 2023"]
[White "Chigaev, Maksim"]
[Black "Timmermans, Mark"]
[WhiteFideId "4108116"]
[BlackFideId "1026399"]
[WhiteElo "2628"]
[BlackElo "2392"]
[Result "1-0"]
[Round "11"]
[TimeControl "180+2"]
[Date "2023.02.01"]
[WhiteClock "0:00:25"]
[BlackClock "0:01:24"]

1. e4 {[%clk 0:03:00]}  e5 {[%clk 0:02:59]} 2. Bc4 {[%clk 0:03:00]}  Nf6 {[%clk 0:02:57]} 3. d3 {[%clk 0:03:01]}  c6 {[%clk 0:02:56]} 4. Nf3 {[%clk 0:03:01]}  d5 {[%clk 0:02:57]} 5. Bb3 {[%clk 0:03:02]}  Bd6 {[%clk 0:02:57]} 6. Nc3 {[%clk 0:03:02]}  d4 {[%clk 0:02:57]} 7. Ne2 {[%clk 0:03:02]}  O-O {[%clk 0:02:57]} 8. h3 {[%clk 0:03:01]}  Be6 {[%clk 0:02:56]} 9. g4 {[%clk 0:02:53]}  a5 {[%clk 0:02:56]} 10. a3 {[%clk 0:02:41]}  a4 {[%clk 0:02:52]} 11. Ba2 {[%clk 0:02:40]}  Bxa2 {[%clk 0:02:52]} 12. Rxa2 {[%clk 0:02:41]}  c5 {[%clk 0:02:49]} 13. Ng3 {[%clk 0:02:41]}  Nfd7 {[%clk 0:02:47]} 14. h4 {[%clk 0:02:38]}  b5 {[%clk 0:02:46]} 15. Nf5 {[%clk 0:02:38]}  Ra6 {[%clk 0:02:46]} 16. h5 {[%clk 0:02:39]}  c4 {[%clk 0:02:44]} 17. Kf1 {[%clk 0:02:35]}  Nc5 {[%clk 0:02:35]} 18. Qe2 {[%clk 0:02:32]}  cxd3 {[%clk 0:02:28]} 19. cxd3 {[%clk 0:02:33]}  Nb3 {[%clk 0:02:27]} 20. Bg5 {[%clk 0:02:33]}  f6 {[%clk 0:02:27]} 21. Bd2 {[%clk 0:02:29]}  Rc6 {[%clk 0:02:11]} 22. Kg2 {[%clk 0:01:45]}  Qd7 {[%clk 0:02:10]} 23. Raa1 {[%clk 0:01:30]}  Nxa1 {[%clk 0:02:09]} 24. Rxa1 {[%clk 0:01:31]}  Na6 {[%clk 0:02:10]} 25. Rg1 {[%clk 0:01:29]}  Nc5 {[%clk 0:02:06]} 26. Kh1 {[%clk 0:01:11]}  Nb3 {[%clk 0:02:02]} 27. g5 {[%clk 0:01:08]}  fxg5 {[%clk 0:02:00]} 28. Rxg5 {[%clk 0:01:08]}  Rf7 {[%clk 0:01:50]} 29. Nh6+ {[%clk 0:01:02]}  Kh8 {[%clk 0:01:50]} 30. Nxf7+ {[%clk 0:01:02]}  Qxf7 {[%clk 0:01:51]} 31. Rf5 {[%clk 0:00:58]}  Qe8 {[%clk 0:01:50]} 32. Bb4 {[%clk 0:00:48]}  Bxb4 {[%clk 0:01:46]} 33. axb4 {[%clk 0:00:49]}  Rf6 {[%clk 0:01:39]} 34. Nxe5 {[%clk 0:00:41]}  Rxf5 {[%clk 0:01:37]} 35. exf5 {[%clk 0:00:42]}  Kg8 {[%clk 0:01:36]} 36. Kg2 {[%clk 0:00:28]}  Nc1 {[%clk 0:01:33]} 37. Qe4 {[%clk 0:00:28]}  Nxd3 {[%clk 0:01:29]} 38. Qd5+ {[%clk 0:00:27]}  Kf8 {[%clk 0:01:29]} 39. Nxd3 {[%clk 0:00:26]}  Qxh5 {[%clk 0:01:24]} 40. Qc5+ {[%clk 0:00:25]} 1-0


[Site "https://www.chess.com"]

[Event "Titled Tuesday Blitz January 31 Late 2023"]
[White "Santos Ruiz, Miguel"]
[Black "Melkumyan, Hrant"]
[WhiteFideId "22291482"]
[BlackFideId "13302485"]
[WhiteElo "2590"]
[BlackElo "2645"]
[Result "1-0"]
[Round "11"]
[TimeControl "180+2"]
[Date "2023.02.01"]
[WhiteClock "0:00:09"]
[BlackClock "0:00:07"]

1. e4 {[%clk 0:03:00]}  c5 {[%clk 0:02:50]} 2. Nf3 {[%clk 0:03:00]}  Nc6 {[%clk 0:02:51]} 3. d4 {[%clk 0:03:01]}  cxd4 {[%clk 0:02:51]} 4. Nxd4 {[%clk 0:03:02]}  e5 {[%clk 0:02:50]} 5. Nb5 {[%clk 0:03:01]}  d6 {[%clk 0:02:50]} 6. c4 {[%clk 0:03:01]}  g6 {[%clk 0:02:51]} 7. Bd3 {[%clk 0:03:00]}  a6 {[%clk 0:02:48]} 8. N5c3 {[%clk 0:03:00]}  Bg7 {[%clk 0:02:48]} 9. O-O {[%clk 0:03:00]}  Nge7 {[%clk 0:02:48]} 10. Nd5 {[%clk 0:02:58]}  O-O {[%clk 0:02:46]} 11. Nbc3 {[%clk 0:02:58]}  Be6 {[%clk 0:02:40]} 12. Be3 {[%clk 0:02:53]}  Nd4 {[%clk 0:02:38]} 13. Bxd4 {[%clk 0:02:52]}  exd4 {[%clk 0:02:36]} 14. Nxe7+ {[%clk 0:02:53]}  Qxe7 {[%clk 0:02:37]} 15. Nd5 {[%clk 0:02:53]}  Qd8 {[%clk 0:02:32]} 16. f4 {[%clk 0:02:52]}  Rc8 {[%clk 0:02:30]} 17. Qb3 {[%clk 0:02:42]}  b5 {[%clk 0:02:16]} 18. cxb5 {[%clk 0:02:35]}  axb5 {[%clk 0:02:17]} 19. Bxb5 {[%clk 0:02:35]}  Bxd5 {[%clk 0:02:02]} 20. exd5 {[%clk 0:02:25]}  Qa5 {[%clk 0:01:51]} 21. a4 {[%clk 0:02:21]}  Qd2 {[%clk 0:01:47]} 22. a5 {[%clk 0:02:02]}  Rc2 {[%clk 0:01:44]} 23. Qf3 {[%clk 0:01:53]}  d3 {[%clk 0:01:38]} 24. Bxd3 {[%clk 0:01:47]}  Rxb2 {[%clk 0:01:37]} 25. a6 {[%clk 0:01:42]}  Rb3 {[%clk 0:01:37]} 26. Rad1 {[%clk 0:01:40]}  Qc3 {[%clk 0:01:25]} 27. f5 {[%clk 0:01:37]}  Be5 {[%clk 0:01:18]} 28. Kh1 {[%clk 0:01:30]}  Ra3 {[%clk 0:01:13]} 29. Qg4 {[%clk 0:01:16]}  Kg7 {[%clk 0:01:10]} 30. Rf3 {[%clk 0:00:56]}  Ra1 {[%clk 0:01:00]} 31. Rxa1 {[%clk 0:00:50]}  Qxa1+ {[%clk 0:01:01]} 32. Rf1 {[%clk 0:00:50]}  Qa5 {[%clk 0:01:00]} 33. Qc4 {[%clk 0:00:35]}  Rb8 {[%clk 0:00:54]} 34. Qc6 {[%clk 0:00:27]}  Qd2 {[%clk 0:00:45]} 35. Qc2 {[%clk 0:00:15]}  Qe3 {[%clk 0:00:39]} 36. fxg6 {[%clk 0:00:13]}  hxg6 {[%clk 0:00:37]} 37. Qc7 {[%clk 0:00:06]}  Qxd3 {[%clk 0:00:21]} 38. Rxf7+ {[%clk 0:00:06]}  Kh6 {[%clk 0:00:20]} 39. Rh7+ {[%clk 0:00:06]}  Kg5 {[%clk 0:00:21]} 40. Qe7+ {[%clk 0:00:07]}  Bf6 {[%clk 0:00:21]} 41. h4+ {[%clk 0:00:07]}  Kg4 {[%clk 0:00:18]} 42. Qe6+ {[%clk 0:00:03]}  Qf5 {[%clk 0:00:15]} 43. Qe2+ {[%clk 0:00:01]}  Kf4 {[%clk 0:00:12]} 44. Qf2+ {[%clk 0:00:01]}  Ke4 {[%clk 0:00:10]} 45. Qe2+ {[%clk 0:00:02]}  Kxd5 {[%clk 0:00:10]} 46. Qd1+ {[%clk 0:00:01]}  Bd4 {[%clk 0:00:09]} 47. a7 {[%clk 0:00:01]}  Ra8 {[%clk 0:00:09]} 48. Qb3+ {[%clk 0:00:01]}  Ke4 {[%clk 0:00:05]} 49. Re7+ {[%clk 0:00:01]}  Be5 {[%clk 0:00:06]} 50. Qc2+ {[%clk 0:00:01]}  Kf4 {[%clk 0:00:06]} 51. Rf7 {[%clk 0:00:02]}  Rxa7 {[%clk 0:00:03]} 52. Rxf5+ {[%clk 0:00:01]}  gxf5 {[%clk 0:00:04]} 53. Qf2+ {[%clk 0:00:01]}  Kg4 {[%clk 0:00:04]} 54. Qxa7 {[%clk 0:00:02]}  Kxh4 {[%clk 0:00:05]} 55. Qf7 {[%clk 0:00:02]}  Kg5 {[%clk 0:00:05]} 56. Qe6 {[%clk 0:00:03]}  Kf4 {[%clk 0:00:06]} 57. Kg1 {[%clk 0:00:04]}  Ke4 {[%clk 0:00:06]} 58. Kf1 {[%clk 0:00:05]}  d5 {[%clk 0:00:07]} 59. Ke2 {[%clk 0:00:05]}  d4 {[%clk 0:00:07]} 60. Qc6+ {[%clk 0:00:06]}  Kf4 {[%clk 0:00:07]} 61. Qf3+ {[%clk 0:00:07]}  Kg5 {[%clk 0:00:08]} 62. Kd3 {[%clk 0:00:08]}  Kf6 {[%clk 0:00:08]} 63. Kc4 {[%clk 0:00:09]}  Ke6 {[%clk 0:00:07]} 64. g4 {[%clk 0:00:09]}  f4 {[%clk 0:00:07]} 65. Kd3 {[%clk 0:00:09]} 1-0


[Site "https://www.chess.com"]

[Event "Titled Tuesday Blitz January 31 Late 2023"]
[White "Holt, Conrad"]
[Black "Golubka, Petro"]
[WhiteFideId "2034387"]
[BlackFideId "14114224"]
[WhiteElo "2540"]
[BlackElo "2371"]
[Result "0-1"]
[Round "11"]
[TimeControl "180+2"]
[Date "2023.02.01"]
[WhiteClock "0:00:06"]
[BlackClock "0:01:39"]

1. d4 {[%clk 0:01:38]}  Nf6 {[%clk 0:02:57]} 2. c4 {[%clk 0:01:37]}  g6 {[%clk 0:02:56]} 3. Nc3 {[%clk 0:01:37]}  d5 {[%clk 0:02:56]} 4. e3 {[%clk 0:01:36]}  Bg7 {[%clk 0:02:56]} 5. Qa4+ {[%clk 0:01:33]}  c6 {[%clk 0:02:55]} 6. cxd5 {[%clk 0:01:33]}  Nxd5 {[%clk 0:02:55]} 7. Nf3 {[%clk 0:01:33]}  O-O {[%clk 0:02:54]} 8. Be2 {[%clk 0:01:33]}  Nb6 {[%clk 0:02:51]} 9. Qa3 {[%clk 0:01:31]}  a5 {[%clk 0:02:52]} 10. O-O {[%clk 0:01:30]}  Be6 {[%clk 0:02:52]} 11. Ng5 {[%clk 0:01:22]}  Bc4 {[%clk 0:02:45]} 12. Bxc4 {[%clk 0:01:20]}  Nxc4 {[%clk 0:02:46]} 13. Qb3 {[%clk 0:01:20]}  Nd6 {[%clk 0:02:46]} 14. a4 {[%clk 0:01:19]}  Na6 {[%clk 0:02:45]} 15. Nf3 {[%clk 0:01:17]}  c5 {[%clk 0:02:39]} 16. Nb5 {[%clk 0:01:07]}  c4 {[%clk 0:02:37]} 17. Qc3 {[%clk 0:01:06]}  Rc8 {[%clk 0:02:35]} 18. Bd2 {[%clk 0:00:59]}  Nb4 {[%clk 0:02:34]} 19. Na7 {[%clk 0:00:45]}  Rc7 {[%clk 0:02:31]} 20. Qc1 {[%clk 0:00:24]}  Nd3 {[%clk 0:02:26]} 21. Qb1 {[%clk 0:00:21]}  b6 {[%clk 0:02:26]} 22. Nb5 {[%clk 0:00:20]}  Nxb5 {[%clk 0:02:27]} 23. axb5 {[%clk 0:00:21]}  Qd7 {[%clk 0:02:27]} 24. b3 {[%clk 0:00:17]}  Nb4 {[%clk 0:02:16]} 25. Bxb4 {[%clk 0:00:16]}  axb4 {[%clk 0:02:17]} 26. bxc4 {[%clk 0:00:16]}  Rxc4 {[%clk 0:02:18]} 27. Qd3 {[%clk 0:00:16]}  Rfc8 {[%clk 0:02:16]} 28. Nd2 {[%clk 0:00:14]}  Rc3 {[%clk 0:02:15]} 29. Qe4 {[%clk 0:00:14]}  e5 {[%clk 0:02:12]} 30. Nf3 {[%clk 0:00:13]}  exd4 {[%clk 0:02:08]} 31. Nxd4 {[%clk 0:00:13]}  Re8 {[%clk 0:02:06]} 32. Qf4 {[%clk 0:00:12]}  Be5 {[%clk 0:02:05]} 33. Qh4 {[%clk 0:00:11]}  Rc4 {[%clk 0:01:57]} 34. Rad1 {[%clk 0:00:11]}  h5 {[%clk 0:01:48]} 35. Qg5 {[%clk 0:00:10]}  Bxd4 {[%clk 0:01:46]} 36. exd4 {[%clk 0:00:09]}  Rxd4 {[%clk 0:01:45]} 37. Rde1 {[%clk 0:00:08]}  Rxe1 {[%clk 0:01:43]} 38. Rxe1 {[%clk 0:00:08]}  Rd1 {[%clk 0:01:43]} 39. Qe3 {[%clk 0:00:08]}  b3 {[%clk 0:01:43]} 40. g3 {[%clk 0:00:06]}  b2 {[%clk 0:01:41]} 41. Rxd1 {[%clk 0:00:06]}  Qxd1+ {[%clk 0:01:39]} 0-1


[Site "https://www.chess.com"]

[Event "Titled Tuesday Blitz January 31 Late 2023"]
[White "Pakleza, Zbigniew"]
[Black "Krysa, Leandro"]
[WhiteFideId "1119290"]
[BlackFideId "116807"]
[WhiteElo "2494"]
[BlackElo "2541"]
[Result "1-0"]
[Round "11"]
[TimeControl "180+2"]
[Date "2023.02.01"]
[WhiteClock "0:00:39"]
[BlackClock "0:00:29"]

1. d4 {[%clk 0:03:00]}  d5 {[%clk 0:02:59]} 2. Bf4 {[%clk 0:03:00]}  Nf6 {[%clk 0:02:59]} 3. e3 {[%clk 0:03:01]}  e6 {[%clk 0:02:59]} 4. Nd2 {[%clk 0:03:01]}  c5 {[%clk 0:02:56]} 5. c3 {[%clk 0:03:01]}  Bd6 {[%clk 0:02:55]} 6. Bg3 {[%clk 0:03:01]}  O-O {[%clk 0:02:54]} 7. Ngf3 {[%clk 0:03:02]}  Qc7 {[%clk 0:02:53]} 8. Be2 {[%clk 0:03:02]}  Nbd7 {[%clk 0:02:52]} 9. c4 {[%clk 0:03:03]}  cxd4 {[%clk 0:02:47]} 10. Nxd4 {[%clk 0:03:02]}  dxc4 {[%clk 0:02:43]} 11. Nb5 {[%clk 0:03:00]}  Bxg3 {[%clk 0:02:40]} 12. Nxc7 {[%clk 0:02:59]}  Bxc7 {[%clk 0:02:41]} 13. Bxc4 {[%clk 0:02:49]}  Ne5 {[%clk 0:02:39]} 14. Be2 {[%clk 0:02:13]}  Rd8 {[%clk 0:02:32]} 15. a3 {[%clk 0:02:13]}  Nd3+ {[%clk 0:01:51]} 16. Bxd3 {[%clk 0:02:11]}  Rxd3 {[%clk 0:01:52]} 17. Qc2 {[%clk 0:01:56]}  Rd7 {[%clk 0:01:51]} 18. O-O {[%clk 0:01:50]}  b6 {[%clk 0:01:51]} 19. Ne4 {[%clk 0:01:50]}  Nd5 {[%clk 0:01:47]} 20. Qc6 {[%clk 0:01:25]}  Rb8 {[%clk 0:01:39]} 21. Rfd1 {[%clk 0:01:22]}  Re7 {[%clk 0:01:28]} 22. Rac1 {[%clk 0:01:22]}  Bb7 {[%clk 0:01:26]} 23. Qa4 {[%clk 0:01:22]}  a5 {[%clk 0:01:22]} 24. Nc3 {[%clk 0:01:18]}  h6 {[%clk 0:01:12]} 25. Nxd5 {[%clk 0:01:15]}  exd5 {[%clk 0:01:12]} 26. Qb5 {[%clk 0:00:54]}  Ba8 {[%clk 0:01:04]} 27. h3 {[%clk 0:00:50]}  g6 {[%clk 0:00:49]} 28. Rd2 {[%clk 0:00:48]}  Kg7 {[%clk 0:00:48]} 29. Rdc2 {[%clk 0:00:48]}  Be5 {[%clk 0:00:48]} 30. Rc8 {[%clk 0:00:46]}  Rxc8 {[%clk 0:00:49]} 31. Rxc8 {[%clk 0:00:46]}  Bb7 {[%clk 0:00:49]} 32. Re8 {[%clk 0:00:41]}  Ba6 {[%clk 0:00:29]} 33. Rxe7 {[%clk 0:00:39]} 1-0


[Site "https://www.chess.com"]